[Event "Live Chess"]
[Site "Chess.com"]
[Date "2021.02.24"]
[Round "5"]
[White "stratus_junior"]
[Black "mwncklmann"]
[Result "1-0"]
[CurrentPosition "7Q/pq3r1k/bn2p1p1/5p1p/3BP3/2N2PP1/PP4KP/3R4 b - -"]
[Timezone "UTC"]
[ECO "D30"]
[ECOUrl "https://www.chess.com/openings/Queens-Gambit-Declined-3.Nf3-Nf6"]
[UTCDate "2021.02.24"]
[UTCTime "02:30:25"]
[WhiteElo "2043"]
[BlackElo "1947"]
[TimeControl "2100+2"]
[Termination "stratus_junior won by checkmate"]
[StartTime "02:30:25"]
[EndDate "2021.02.24"]
[EndTime "03:42:11"]
[Link "https://www.chess.com/live/game/7872831799"]

1. d4 {[%clk 0:34:54.5]} 1... d5 {[%clk 0:34:58.3]} 2. c4 {[%clk 0:34:55.3]} 2... e6 {[%clk 0:34:58.4]} 3. Nf3 {[%clk 0:34:55.5]} 3... Nf6 {[%clk 0:34:58.7]} 4. g3 {[%clk 0:34:48]} 4... Be7 {[%clk 0:34:54.9]} 5. Bg2 {[%clk 0:34:47.5]} 5... O-O {[%clk 0:34:53.9]} 6. O-O {[%clk 0:34:44.1]} 6... dxc4 {[%clk 0:34:54.5]} 7. Ne5 {[%clk 0:34:44.3]} 7... Nc6 {[%clk 0:34:51.7]} 8. Bxc6 {[%clk 0:34:44.4]} 8... bxc6 {[%clk 0:34:51.9]} 9. Nxc6 {[%clk 0:34:46.1]} 9... Qe8 {[%clk 0:34:37.2]} 10. Nxe7+ {[%clk 0:34:44]} 10... Qxe7 {[%clk 0:34:39.1]} 11. Qa4 {[%clk 0:34:44.5]} 11... c5 {[%clk 0:33:04.4]} 12. Qxc4 {[%clk 0:34:38.8]} 12... cxd4 {[%clk 0:32:55.9]} 13. Qxd4 {[%clk 0:34:40.7]} 13... Rd8 {[%clk 0:32:36.2]} 14. Qh4 {[%clk 0:32:43.5]} 14... h6 {[%clk 0:32:01.4]} 15. Nc3 {[%clk 0:32:18.3]} 15... Bb7 {[%clk 0:31:41.6]} 16. e4 {[%clk 0:29:37.6]} 16... Rac8 {[%clk 0:28:26.6]} 17. Be3 {[%clk 0:21:09.6]} 17... Rc4 {[%clk 0:24:27.2]} 18. f3 {[%clk 0:20:23.1]} 18... Rd3 {[%clk 0:20:27.3]} 19. Rfe1 {[%clk 0:17:29.4]} 19... Qb4 {[%clk 0:18:11.9]} 20. Rab1 {[%clk 0:16:53.2]} 20... Kh7 {[%clk 0:10:46.1]} 21. Qh3 {[%clk 0:10:50.1]} 21... Nd7 {[%clk 0:05:49.1]} 22. Qf1 {[%clk 0:09:46.8]} 22... Ne5 {[%clk 0:04:40.2]} 23. Qe2 {[%clk 0:06:45.9]} 23... Rd7 {[%clk 0:02:19.2]} 24. Rbd1 {[%clk 0:06:14]} 24... Ba6 {[%clk 0:01:36.2]} 25. Rxd7 {[%clk 0:05:38.4]} 25... Nxd7 {[%clk 0:01:38.1]} 26. Qc2 {[%clk 0:05:02.2]} 26... Qb7 {[%clk 0:01:22]} 27. Rd1 {[%clk 0:04:14.2]} 27... g6 {[%clk 0:00:29.7]} 28. Kg2 {[%clk 0:02:28.8]} 28... Nb6 {[%clk 0:00:13.5]} 29. Qd2 {[%clk 0:01:02.3]} 29... h5 {[%clk 0:00:13.9]} 30. Bd4 {[%clk 0:00:44.5]} 30... Rc7 {[%clk 0:00:12.9]} 31. Qg5 {[%clk 0:00:29.4]} 31... f5 {[%clk 0:00:13.9]} 32. Qf6 {[%clk 0:00:26.2]} 32... Rf7 {[%clk 0:00:14.2]} 33. Qh8# {[%clk 0:00:26.8]} 1-0

[Event "Live Chess"]
[Site "Chess.com"]
[Date "2021.02.24"]
[Round "5"]
[White "ninjaforce"]
[Black "Joseph_Truelsons_Fan"]
[Result "0-1"]
[CurrentPosition "8/5p1k/p5pP/4pbn1/2rp4/5PK1/PP1R4/7R w - -"]
[Timezone "UTC"]
[ECO "B90"]
[ECOUrl "https://www.chess.com/openings/Sicilian-Defense-Open-Najdorf-Variation-6.f3"]
[UTCDate "2021.02.24"]
[UTCTime "02:32:42"]
[WhiteElo "1994"]
[BlackElo "1852"]
[TimeControl "2100+2"]
[Termination "Joseph_Truelsons_Fan won by resignation"]
[StartTime "02:32:42"]
[EndDate "2021.02.24"]
[EndTime "03:15:28"]
[Link "https://www.chess.com/live/game/7872854141"]

1. e4 {[%clk 0:34:59.1]} 1... c5 {[%clk 0:34:49.5]} 2. Nf3 {[%clk 0:34:59.3]} 2... d6 {[%clk 0:34:47.8]} 3. d4 {[%clk 0:34:59.5]} 3... cxd4 {[%clk 0:34:43.5]} 4. Nxd4 {[%clk 0:35:01.4]} 4... Nf6 {[%clk 0:34:38.3]} 5. Nc3 {[%clk 0:34:55.5]} 5... a6 {[%clk 0:34:25.8]} 6. f3 {[%clk 0:34:44.6]} 6... e5 {[%clk 0:34:16.2]} 7. Nb3 {[%clk 0:34:42.7]} 7... Be6 {[%clk 0:34:02.4]} 8. Be3 {[%clk 0:34:40.8]} 8... Be7 {[%clk 0:33:50.4]} 9. Qd2 {[%clk 0:34:35.1]} 9... O-O {[%clk 0:33:00.7]} 10. g4 {[%clk 0:34:29.3]} 10... h6 {[%clk 0:32:53.1]} 11. O-O-O {[%clk 0:33:06.4]} 11... b5 {[%clk 0:30:56.1]} 12. h4 {[%clk 0:32:59.3]} 12... Nbd7 {[%clk 0:28:00.9]} 13. g5 {[%clk 0:32:51.7]} 13... Nh5 {[%clk 0:27:57.3]} 14. gxh6 {[%clk 0:32:51.7]} 14... g6 {[%clk 0:27:53.5]} 15. Rg1 {[%clk 0:28:40.1]} 15... Kh7 {[%clk 0:26:51.9]} 16. Bg5 {[%clk 0:26:38.2]} 16... Ndf6 {[%clk 0:25:23.1]} 17. Nd5 {[%clk 0:24:41.4]} 17... Nxd5 {[%clk 0:24:25]} 18. exd5 {[%clk 0:24:37.4]} 18... Bf5 {[%clk 0:24:21.7]} 19. Na5 {[%clk 0:24:09.9]} 19... Bxg5 {[%clk 0:23:16]} 20. hxg5 {[%clk 0:24:07.9]} 20... Nf4 {[%clk 0:23:05.6]} 21. Nc6 {[%clk 0:22:56.5]} 21... Qb6 {[%clk 0:22:19.1]} 22. Rh1 {[%clk 0:21:14.2]} 22... Rac8 {[%clk 0:20:58.8]} 23. c4 {[%clk 0:19:46.2]} 23... bxc4 {[%clk 0:20:20.7]} 24. Bxc4 {[%clk 0:19:26]} 24... Rxc6 {[%clk 0:19:31.4]} 25. dxc6 {[%clk 0:19:24]} 25... Qxc6 {[%clk 0:19:30.8]} 26. Qc3 {[%clk 0:17:32.1]} 26... Rc8 {[%clk 0:19:08.8]} 27. Kd2 {[%clk 0:17:01.1]} 27... Qxc4 {[%clk 0:19:05.2]} 28. Qxc4 {[%clk 0:17:03]} 28... Rxc4 {[%clk 0:19:05.6]} 29. Ke3 {[%clk 0:16:26.9]} 29... d5 {[%clk 0:16:44.1]} 30. Rd2 {[%clk 0:16:07.2]} 30... d4+ {[%clk 0:15:51.9]} 31. Kf2 {[%clk 0:16:04.2]} 31... Nh3+ {[%clk 0:15:49.1]} 32. Kg3 {[%clk 0:15:58.1]} 32... Nxg5 {[%clk 0:15:48.2]} 0-1

[Event "Live Chess"]
[Site "Chess.com"]
[Date "2021.02.24"]
[Round "5"]
[White "Mangonel"]
[Black "chessappeals"]
[Result "1-0"]
[CurrentPosition "8/2KP4/8/8/8/8/8/7k b - -"]
[Timezone "UTC"]
[ECO "E00"]
[ECOUrl "https://www.chess.com/openings/Catalan-Opening"]
[UTCDate "2021.02.24"]
[UTCTime "02:30:22"]
[WhiteElo "1785"]
[BlackElo "1531"]
[TimeControl "2100+2"]
[Termination "Mangonel won by resignation"]
[StartTime "02:30:22"]
[EndDate "2021.02.24"]
[EndTime "03:43:43"]
[Link "https://www.chess.com/live/game/7872834289"]

1. d4 {[%clk 0:34:29.9]} 1... Nf6 {[%clk 0:34:58.5]} 2. c4 {[%clk 0:33:54.2]} 2... e6 {[%clk 0:34:52.3]} 3. g3 {[%clk 0:33:50.8]} 3... c5 {[%clk 0:34:41.8]} 4. d5 {[%clk 0:33:51.1]} 4... exd5 {[%clk 0:34:39.6]} 5. cxd5 {[%clk 0:33:53]} 5... d6 {[%clk 0:34:39.9]} 6. Nc3 {[%clk 0:33:52.5]} 6... g6 {[%clk 0:34:37.6]} 7. Nf3 {[%clk 0:33:49.5]} 7... Bg7 {[%clk 0:34:37.9]} 8. Bg2 {[%clk 0:33:25.7]} 8... O-O {[%clk 0:34:35.5]} 9. O-O {[%clk 0:33:19]} 9... Qe7 {[%clk 0:34:05.9]} 10. Bf4 {[%clk 0:30:29.8]} 10... Nbd7 {[%clk 0:33:39.5]} 11. Rb1 {[%clk 0:29:19.7]} 11... Ng4 {[%clk 0:32:39.6]} 12. Bg5 {[%clk 0:26:45.5]} 12... f6 {[%clk 0:32:15.4]} 13. Bd2 {[%clk 0:26:22.9]} 13... a6 {[%clk 0:31:59.9]} 14. b4 {[%clk 0:25:46.5]} 14... b6 {[%clk 0:29:42.4]} 15. a4 {[%clk 0:24:50.8]} 15... Nge5 {[%clk 0:29:19.1]} 16. Bf4 {[%clk 0:22:02.5]} 16... Nxf3+ {[%clk 0:24:42.4]} 17. exf3 {[%clk 0:21:09]} 17... Ne5 {[%clk 0:23:39.1]} 18. Re1 {[%clk 0:20:33.6]} 18... Qc7 {[%clk 0:20:28.8]} 19. bxc5 {[%clk 0:16:38.3]} 19... bxc5 {[%clk 0:19:42.9]} 20. Re2 {[%clk 0:15:10.9]} 20... Bf5 {[%clk 0:18:37.9]} 21. Ne4 {[%clk 0:14:48.5]} 21... Bxe4 {[%clk 0:17:45.4]} 22. fxe4 {[%clk 0:14:23.1]} 22... Rab8 {[%clk 0:17:04]} 23. Bxe5 {[%clk 0:13:21.7]} 23... fxe5 {[%clk 0:16:42.7]} 24. Reb2 {[%clk 0:13:10.4]} 24... Rxb2 {[%clk 0:16:01.9]} 25. Rxb2 {[%clk 0:13:12.3]} 25... Rb8 {[%clk 0:15:33.8]} 26. Qb1 {[%clk 0:10:23.1]} 26... Rxb2 {[%clk 0:14:57.9]} 27. Qxb2 {[%clk 0:10:25]} 27... a5 {[%clk 0:12:26.5]} 28. Qb5 {[%clk 0:10:15.3]} 28... Kf8 {[%clk 0:11:49.5]} 29. Bh3 {[%clk 0:09:52.7]} 29... c4 {[%clk 0:09:58.4]} 30. Qc6 {[%clk 0:08:55.3]} 30... Qd8 {[%clk 0:07:58.6]} 31. Qxc4 {[%clk 0:08:39.5]} 31... Bh6 {[%clk 0:07:45.1]} 32. Be6 {[%clk 0:06:52.8]} 32... Bg5 {[%clk 0:05:17.5]} 33. h4 {[%clk 0:05:51.1]} 33... Be7 {[%clk 0:04:31.9]} 34. Kf1 {[%clk 0:05:16.2]} 34... Qb8 {[%clk 0:03:43.6]} 35. Qc8+ {[%clk 0:04:15.8]} 35... Qxc8 {[%clk 0:03:41.9]} 36. Bxc8 {[%clk 0:04:17.7]} 36... Kg7 {[%clk 0:03:10.8]} 37. Ke2 {[%clk 0:04:16.9]} 37... g5 {[%clk 0:03:05.5]} 38. hxg5 {[%clk 0:04:04.2]} 38... Bxg5 {[%clk 0:03:03.5]} 39. Kd3 {[%clk 0:03:54.7]} 39... h5 {[%clk 0:02:57.1]} 40. Kc4 {[%clk 0:03:44.3]} 40... Bd2 {[%clk 0:02:46.3]} 41. Kb5 {[%clk 0:03:38.6]} 41... Kf6 {[%clk 0:02:34.5]} 42. Kc6 {[%clk 0:03:07.9]} 42... Bb4 {[%clk 0:02:34]} 43. f4 {[%clk 0:02:52.3]} 43... exf4 {[%clk 0:02:12.7]} 44. gxf4 {[%clk 0:02:54.2]} 44... h4 {[%clk 0:01:57]} 45. Bh3 {[%clk 0:02:43]} 45... Ba3 {[%clk 0:01:40.7]} 46. Kb5 {[%clk 0:02:33.5]} 46... Bb4 {[%clk 0:01:36.4]} 47. Kc4 {[%clk 0:02:17.6]} 47... Bd2 {[%clk 0:01:32.2]} 48. Kb5 {[%clk 0:01:53.7]} 48... Bxf4 {[%clk 0:01:18.3]} 49. Kxa5 {[%clk 0:01:53.4]} 49... Ke5 {[%clk 0:01:12.5]} 50. Kb6 {[%clk 0:01:36.7]} 50... Kxe4 {[%clk 0:01:07.3]} 51. Kc6 {[%clk 0:01:34.1]} 51... Ke5 {[%clk 0:01:01.5]} 52. a5 {[%clk 0:01:31.1]} 52... Be3 {[%clk 0:00:59.7]} 53. a6 {[%clk 0:01:32.1]} 53... Bd4 {[%clk 0:00:54.1]} 54. Bg2 {[%clk 0:01:22.9]} 54... Bc5 {[%clk 0:00:50.4]} 55. Bh1 {[%clk 0:01:18.7]} 55... Bd4 {[%clk 0:00:49.2]} 56. Kb7 {[%clk 0:01:19.5]} 56... h3 {[%clk 0:00:45.4]} 57. a7 {[%clk 0:01:19.8]} 57... Bxa7 {[%clk 0:00:42.6]} 58. Kxa7 {[%clk 0:01:21.7]} 58... h2 {[%clk 0:00:41.2]} 59. Kb7 {[%clk 0:01:20]} 59... Kf4 {[%clk 0:00:40.6]} 60. Kc7 {[%clk 0:01:08.5]} 60... Ke5 {[%clk 0:00:37.5]} 61. Kd7 {[%clk 0:01:07.3]} 61... Kd4 {[%clk 0:00:30.8]} 62. Kxd6 {[%clk 0:01:07.3]} 62... Ke3 {[%clk 0:00:29.9]} 63. Kc7 {[%clk 0:01:07.7]} 63... Kf2 {[%clk 0:00:31]} 64. d6 {[%clk 0:01:08.3]} 64... Kg1 {[%clk 0:00:32]} 65. Bc6 {[%clk 0:01:08.9]} 65... h1=Q {[%clk 0:00:30.6]} 66. Bxh1 {[%clk 0:01:09.5]} 66... Kxh1 {[%clk 0:00:31.3]} 67. d7 {[%clk 0:01:11.3]} 1-0

[Event "Live Chess"]
[Site "Chess.com"]
[Date "2021.02.24"]
[Round "5"]
[White "MechAnjin"]
[Black "GuyArgo"]
[Result "0-1"]
[CurrentPosition "6rk/pp4rp/1n6/3p4/8/P1Q2N2/1PRN2q1/2R4K w - -"]
[Timezone "UTC"]
[ECO "A80"]
[ECOUrl "https://www.chess.com/openings/Dutch-Defense-Hopton-Attack"]
[UTCDate "2021.02.24"]
[UTCTime "02:30:39"]
[WhiteElo "1545"]
[BlackElo "1830"]
[TimeControl "2100+2"]
[Termination "GuyArgo won by checkmate"]
[StartTime "02:30:39"]
[EndDate "2021.02.24"]
[EndTime "03:13:39"]
[Link "https://www.chess.com/live/game/7872834653"]

1. d4 {[%clk 0:34:41.9]} 1... f5 {[%clk 0:34:59.4]} 2. Bg5 {[%clk 0:34:38.2]} 2... d5 {[%clk 0:34:21.2]} 3. Nd2 {[%clk 0:34:31.2]} 3... Nd7 {[%clk 0:34:15.8]} 4. e3 {[%clk 0:34:22.7]} 4... Ngf6 {[%clk 0:34:13.9]} 5. Bd3 {[%clk 0:34:18]} 5... e6 {[%clk 0:34:13.4]} 6. Ngf3 {[%clk 0:33:26.7]} 6... Bd6 {[%clk 0:34:08.5]} 7. c4 {[%clk 0:33:01.7]} 7... c6 {[%clk 0:33:58.3]} 8. cxd5 {[%clk 0:32:24.1]} 8... cxd5 {[%clk 0:33:55]} 9. Rc1 {[%clk 0:32:12.9]} 9... O-O {[%clk 0:33:46.7]} 10. O-O {[%clk 0:32:11.5]} 10... Qe8 {[%clk 0:29:41]} 11. Bxf6 {[%clk 0:31:34.5]} 11... gxf6 {[%clk 0:22:56.9]} 12. Qb3 {[%clk 0:31:11.3]} 12... Nb6 {[%clk 0:21:22.7]} 13. Bb5 {[%clk 0:30:07]} 13... Bd7 {[%clk 0:21:19]} 14. Bxd7 {[%clk 0:29:45.6]} 14... Qxd7 {[%clk 0:21:16.3]} 15. Rc2 {[%clk 0:29:04.1]} 15... Kh8 {[%clk 0:20:24.8]} 16. Rfc1 {[%clk 0:29:00.8]} 16... Rg8 {[%clk 0:20:01.2]} 17. g3 {[%clk 0:27:02.4]} 17... Rg4 {[%clk 0:19:01.1]} 18. Kf1 {[%clk 0:26:20.3]} 18... Rag8 {[%clk 0:17:46.4]} 19. Ke2 {[%clk 0:24:42.4]} 19... e5 {[%clk 0:15:29.1]} 20. dxe5 {[%clk 0:24:26.3]} 20... fxe5 {[%clk 0:15:25.4]} 21. a3 {[%clk 0:24:07]} 21... f4 {[%clk 0:11:37.8]} 22. exf4 {[%clk 0:23:48.5]} 22... exf4 {[%clk 0:11:14.8]} 23. Kf1 {[%clk 0:23:32.2]} 23... fxg3 {[%clk 0:10:59.3]} 24. hxg3 {[%clk 0:23:28.9]} 24... R4g7 {[%clk 0:10:11.1]} 25. Qc3 {[%clk 0:22:25.9]} 25... Qh3+ {[%clk 0:09:45.7]} 26. Kg1 {[%clk 0:20:31.6]} 26... Bxg3 {[%clk 0:09:23.4]} 27. fxg3 {[%clk 0:20:13.4]} 27... Qxg3+ {[%clk 0:09:11]} 28. Kh1 {[%clk 0:19:56.3]} 28... Qg2# {[%clk 0:09:09.9]} 0-1

[Event "Live Chess"]
[Site "Chess.com"]
[Date "2021.02.24"]
[Round "5"]
[White "chessp1234"]
[Black "john_hartmann"]
[Result "1/2-1/2"]
[CurrentPosition "4rrk1/1pq3pp/p1nbp3/3p2B1/3Pb3/P3Q2P/BP1N1PP1/R3R1K1 b - -"]
[Timezone "UTC"]
[ECO "C05"]
[ECOUrl "https://www.chess.com/openings/French-Defense-Tarrasch-Closed-4.e5-Nfd7-5.c3"]
[UTCDate "2021.02.24"]
[UTCTime "02:30:44"]
[WhiteElo "1692"]
[BlackElo "1587"]
[TimeControl "2100+2"]
[Termination "Game drawn by agreement"]
[StartTime "02:30:44"]
[EndDate "2021.02.24"]
[EndTime "03:20:53"]
[Link "https://www.chess.com/live/game/7872834989"]

1. e4 {[%clk 0:34:45.9]} 1... e6 {[%clk 0:35:00.2]} 2. d4 {[%clk 0:34:37.8]} 2... d5 {[%clk 0:35:00.9]} 3. Nd2 {[%clk 0:34:35.1]} 3... Nf6 {[%clk 0:35:00.9]} 4. e5 {[%clk 0:34:31.7]} 4... Nfd7 {[%clk 0:35:01.8]} 5. c3 {[%clk 0:34:26.4]} 5... c5 {[%clk 0:35:01.9]} 6. Ndf3 {[%clk 0:34:23]} 6... Nc6 {[%clk 0:34:07.6]} 7. Bd3 {[%clk 0:34:19]} 7... cxd4 {[%clk 0:33:40.7]} 8. cxd4 {[%clk 0:34:13.8]} 8... f6 {[%clk 0:33:40.6]} 9. exf6 {[%clk 0:34:10.2]} 9... Nxf6 {[%clk 0:33:38.4]} 10. Ne2 {[%clk 0:34:06.4]} 10... Bd6 {[%clk 0:33:30.2]} 11. Nc3 {[%clk 0:31:17.2]} 11... O-O {[%clk 0:31:23]} 12. O-O {[%clk 0:30:12.6]} 12... a6 {[%clk 0:28:08.3]} 13. Re1 {[%clk 0:29:44.8]} 13... Qc7 {[%clk 0:27:58.4]} 14. Bb1 {[%clk 0:27:46.8]} 14... Bd7 {[%clk 0:26:47]} 15. a3 {[%clk 0:25:51.5]} 15... Rae8 {[%clk 0:23:36.6]} 16. Qd3 {[%clk 0:24:19.4]} 16... Re7 {[%clk 0:19:31.9]} 17. Bg5 {[%clk 0:20:40.6]} 17... Be8 {[%clk 0:18:32.7]} 18. Ba2 {[%clk 0:19:30]} 18... Bg6 {[%clk 0:18:05.7]} 19. Qe3 {[%clk 0:18:57]} 19... Ree8 {[%clk 0:15:42.3]} 20. h3 {[%clk 0:18:22.5]} 20... Ne4 {[%clk 0:13:11.5]} 21. Nxe4 {[%clk 0:17:40.1]} 21... Bxe4 {[%clk 0:13:02.5]} 22. Nd2 {[%clk 0:12:53.2]} 22... Bg6 {[%clk 0:12:55.2]} 23. Nf3 {[%clk 0:12:09.3]} 23... Be4 {[%clk 0:11:57.7]} 24. Nd2 {[%clk 0:12:03]} 1/2-1/2

[Event "Live Chess"]
[Site "Chess.com"]
[Date "2021.02.24"]
[Round "5"]
[White "Kondsaga"]
[Black "3Ke31-0"]
[Result "1-0"]
[CurrentPosition "2r2k2/nb2n2p/1p1N2p1/pP6/P3Pb2/1B6/1B1NQPPP/4R1K1 b - -"]
[Timezone "UTC"]
[ECO "B22"]
[ECOUrl "https://www.chess.com/openings/Sicilian-Defense-Alapin-Variation-2...Nc6"]
[UTCDate "2021.02.24"]
[UTCTime "02:30:44"]
[WhiteElo "1947"]
[BlackElo "1941"]
[TimeControl "2100+2"]
[Termination "Kondsaga won by resignation"]
[StartTime "02:30:44"]
[EndDate "2021.02.24"]
[EndTime "03:13:40"]
[Link "https://www.chess.com/live/game/7872835287"]

1. e4 {[%clk 0:34:57.3]} 1... c5 {[%clk 0:34:59.3]} 2. c3 {[%clk 0:34:57.6]} 2... Nc6 {[%clk 0:34:55.8]} 3. Bd3 {[%clk 0:34:48.5]} 3... g6 {[%clk 0:34:22.5]} 4. Nf3 {[%clk 0:34:33.6]} 4... Bg7 {[%clk 0:34:22.5]} 5. O-O {[%clk 0:34:26.5]} 5... e6 {[%clk 0:34:13.1]} 6. Re1 {[%clk 0:33:36.9]} 6... d6 {[%clk 0:33:48.5]} 7. Bc2 {[%clk 0:33:13.2]} 7... Nge7 {[%clk 0:33:35.5]} 8. a3 {[%clk 0:32:08.3]} 8... O-O {[%clk 0:32:49.4]} 9. d4 {[%clk 0:31:53.1]} 9... cxd4 {[%clk 0:32:42.1]} 10. cxd4 {[%clk 0:31:52.6]} 10... b6 {[%clk 0:31:11]} 11. Nc3 {[%clk 0:31:05.6]} 11... Bb7 {[%clk 0:30:19.2]} 12. b4 {[%clk 0:26:11.4]} 12... Rc8 {[%clk 0:29:43.3]} 13. Bb2 {[%clk 0:25:36.2]} 13... a5 {[%clk 0:24:27]} 14. b5 {[%clk 0:25:03]} 14... Na7 {[%clk 0:24:07.9]} 15. a4 {[%clk 0:24:10.3]} 15... e5 {[%clk 0:22:56.1]} 16. dxe5 {[%clk 0:19:56.2]} 16... dxe5 {[%clk 0:22:40.3]} 17. Qe2 {[%clk 0:19:46.5]} 17... Qc7 {[%clk 0:21:15]} 18. Rac1 {[%clk 0:19:30.5]} 18... Bh6 {[%clk 0:19:05]} 19. Rcd1 {[%clk 0:18:45.9]} 19... Rfd8 {[%clk 0:18:10.6]} 20. Bb3 {[%clk 0:18:18.4]} 20... Rd7 {[%clk 0:17:02.3]} 21. Rxd7 {[%clk 0:17:46.1]} 21... Qxd7 {[%clk 0:16:33.9]} 22. Nxe5 {[%clk 0:17:11.7]} 22... Qd2 {[%clk 0:16:14.8]} 23. Nxf7 {[%clk 0:16:42.2]} 23... Bf4 {[%clk 0:15:59.3]} 24. Nd6+ {[%clk 0:15:53.9]} 24... Kg7 {[%clk 0:15:38.2]} 25. Nb1+ {[%clk 0:15:08.9]} 25... Kf8 {[%clk 0:14:31.4]} 26. Nxd2 {[%clk 0:15:04.5]} 1-0

[Event "Live Chess"]
[Site "Chess.com"]
[Date "2021.02.24"]
[Round "5"]
[White "A-boy415"]
[Black "TNM2021"]
[Result "0-1"]
[CurrentPosition "r7/2B3K1/2p1p3/P1P5/4k3/1P1b1p2/8/8 w - -"]
[Timezone "UTC"]
[ECO "B36"]
[ECOUrl "https://www.chess.com/openings/Sicilian-Defense-Old-Sicilian-Open-Accelerated-Dragon-Variation"]
[UTCDate "2021.02.24"]
[UTCTime "02:30:34"]
[WhiteElo "1780"]
[BlackElo "1637"]
[TimeControl "2100+2"]
[Termination "TNM2021 won by resignation"]
[StartTime "02:30:34"]
[EndDate "2021.02.24"]
[EndTime "03:26:19"]
[Link "https://www.chess.com/live/game/7872835673"]

1. e4 {[%clk 0:34:53.1]} 1... c5 {[%clk 0:34:32.9]} 2. Nf3 {[%clk 0:34:43.5]} 2... g6 {[%clk 0:34:33.7]} 3. d4 {[%clk 0:34:38.6]} 3... cxd4 {[%clk 0:34:34.6]} 4. Nxd4 {[%clk 0:34:37.2]} 4... Nc6 {[%clk 0:34:35.5]} 5. Nc3 {[%clk 0:34:33.8]} 5... Bg7 {[%clk 0:34:36.3]} 6. Be3 {[%clk 0:34:32.4]} 6... Nf6 {[%clk 0:34:36.7]} 7. Be2 {[%clk 0:34:24.7]} 7... O-O {[%clk 0:34:35.4]} 8. O-O {[%clk 0:34:21.6]} 8... d5 {[%clk 0:34:29.9]} 9. Qd2 {[%clk 0:34:18]} 9... Nxe4 {[%clk 0:33:25]} 10. Nxe4 {[%clk 0:34:12.1]} 10... dxe4 {[%clk 0:33:26.2]} 11. Nxc6 {[%clk 0:34:12.2]} 11... bxc6 {[%clk 0:33:00.3]} 12. Qxd8 {[%clk 0:33:53.4]} 12... Rxd8 {[%clk 0:32:57.7]} 13. c3 {[%clk 0:33:52.9]} 13... Be6 {[%clk 0:22:42.9]} 14. Ba6 {[%clk 0:32:37.4]} 14... Bc8 {[%clk 0:20:50.8]} 15. Bc4 {[%clk 0:31:44.3]} 15... Bb7 {[%clk 0:20:43.1]} 16. Rfd1 {[%clk 0:31:33.3]} 16... Kf8 {[%clk 0:18:24.3]} 17. Bxa7 {[%clk 0:30:32.6]} 17... Ke8 {[%clk 0:18:22.3]} 18. Bb6 {[%clk 0:30:01.2]} 18... Rxd1+ {[%clk 0:18:09.4]} 19. Rxd1 {[%clk 0:29:59.8]} 19... Be5 {[%clk 0:17:46.2]} 20. a4 {[%clk 0:29:35.9]} 20... Bd6 {[%clk 0:17:34.6]} 21. a5 {[%clk 0:29:33.7]} 21... Ba6 {[%clk 0:16:48.8]} 22. Rd4 {[%clk 0:26:15.2]} 22... f5 {[%clk 0:15:29.3]} 23. Bg8 {[%clk 0:24:54]} 23... h6 {[%clk 0:15:26.5]} 24. Bh7 {[%clk 0:24:50.7]} 24... Kf7 {[%clk 0:14:57.6]} 25. c4 {[%clk 0:23:57]} 25... Kg7 {[%clk 0:14:38.5]} 26. c5 {[%clk 0:22:59.5]} 26... Be5 {[%clk 0:14:17.4]} 27. Rd7 {[%clk 0:22:57.8]} 27... Bf6 {[%clk 0:14:08.6]} 28. Bxg6 {[%clk 0:22:47.3]} 28... Kxg6 {[%clk 0:14:08.2]} 29. Rc7 {[%clk 0:22:45.4]} 29... Bb5 {[%clk 0:14:01.3]} 30. Rd7 {[%clk 0:21:26.1]} 30... Kf7 {[%clk 0:13:48.8]} 31. b3 {[%clk 0:21:21.8]} 31... Ke6 {[%clk 0:13:13.4]} 32. Rd1 {[%clk 0:20:54.8]} 32... Bc3 {[%clk 0:13:00.1]} 33. Rc1 {[%clk 0:20:35.7]} 33... Be5 {[%clk 0:11:24.5]} 34. g3 {[%clk 0:20:13.2]} 34... Kd5 {[%clk 0:09:20.7]} 35. Rd1+ {[%clk 0:20:02.4]} 35... Bd3 {[%clk 0:09:21.3]} 36. Kg2 {[%clk 0:19:42.7]} 36... e6 {[%clk 0:09:19.3]} 37. Kh3 {[%clk 0:18:32.5]} 37... Bd4 {[%clk 0:09:11.7]} 38. Rc1 {[%clk 0:18:06.6]} 38... Bxf2 {[%clk 0:09:04.4]} 39. Kh4 {[%clk 0:17:54]} 39... Be3 {[%clk 0:08:56.7]} 40. Ra1 {[%clk 0:16:54.5]} 40... Bg5+ {[%clk 0:08:46.3]} 41. Kh5 {[%clk 0:16:41.7]} 41... e3 {[%clk 0:08:19.2]} 42. h4 {[%clk 0:16:22.5]} 42... Bf6 {[%clk 0:07:37.4]} 43. Re1 {[%clk 0:14:30.8]} 43... Ke4 {[%clk 0:07:34.6]} 44. Kxh6 {[%clk 0:14:18]} 44... Bc3 {[%clk 0:07:34.7]} 45. Rg1 {[%clk 0:13:19]} 45... e2 {[%clk 0:06:39.9]} 46. g4 {[%clk 0:13:09.9]} 46... e1=Q {[%clk 0:06:35.9]} 47. Rxe1+ {[%clk 0:13:09.2]} 47... Bxe1 {[%clk 0:06:36.8]} 48. g5 {[%clk 0:13:09.8]} 48... Bxh4 {[%clk 0:06:35]} 49. g6 {[%clk 0:13:04.9]} 49... Bf6 {[%clk 0:06:26]} 50. Bc7 {[%clk 0:12:55.1]} 50... f4 {[%clk 0:06:17.5]} 51. g7 {[%clk 0:12:34.8]} 51... Bxg7+ {[%clk 0:06:15.8]} 52. Kxg7 {[%clk 0:12:34.5]} 52... f3 {[%clk 0:06:17.2]} 0-1